bitfinex-derivatives/quotes_SOLF0:USTF0_20250507
["timestamp","ask_amount","ask_price","bid_price","bid_amount"]
[1746627633293,29.52,147.1,147.05,6.8005]
[1746627633598,29.52,147.1,147.01,29.48]
[1746627634295,36.3186,147.1,147.08,6.7992]
[1746627634898,6.7986,147.1,147.08,6.7992]
[1746627635101,6.7986,147.1,147.07,6.7996]
[1746627635302,32.94293011,147.11,147.05,29.46]
[1746627635503,30.82593011,147.11,147.05,29.46]
[1746627635703,30.82593011,147.11,147.08,6.799]
[1746627636202,6.7982,147.11,147.08,6.799]
[1746627636402,8.834,147.12,147.09,6.7987]
[1746627637802,6.7983,147.11,147.07,6.7994]
[1746627638002,6.7983,147.11,147.05,29.46]
[1746627638302,8.8339,147.12,147.09,6.7988]
[1746627638507,2.0362,147.12,147.05,29.46]
[1746627638901,8.8339,147.12,147.09,6.7986]
[1746627639805,6.7981,147.11,147.08,6.7991]
[1746627640405,2.0362,147.12,147.08,6.7991]
[1746627640599,2.0362,147.12,147.05,29.46]
[1746627640802,14.11360039,147.12,147.05,29.46]
[1746627640995,6.7996,147.08,147.05,29.46]
[1746627641203,6.7996,147.08,147.05,36.2605]
[1746627641806,6.7996,147.08,147.06,6.8002]
[1746627642908,6.7992,147.09,147.06,6.8002]
[1746627644609,6.7992,147.09,147.07,6.7997]
[1746627644907,2.0362,147.12,147.05,29.46]
[1746627645108,13.5889,147.19,147.05,29.46]
[1746627645310,64.07394696,147.17,147.05,41.53740039]
[1746627645707,64.07394696,147.17,147.05,629.07740039]
[1746627646006,64.07394696,147.17,147.08,12.07740039]
[1746627646207,64.07394696,147.17,147.09,35.8165]
[1746627646406,64.07394696,147.17,147.15,6.7961]
[1746627646602,8.9348,147.19,147.13,29.44]
[1746627646803,8.9348,147.19,147.14,29.44]
[1746627647005,8.9348,147.19,147.16,6.7954]
[1746627647211,53.46773011,147.22,147.14,29.44]
[1746627647411,53.46773011,147.22,147.18,6.7944]
[1746627647611,53.46773011,147.22,147.14,29.44]
[1746627648411,6.7941,147.2,147.14,29.44]
[1746627649314,6.7942,147.19,147.17,6.7949]
[1746627649915,6.59051605,147.18,147.17,6.7949]
[1746627650114,6.59051605,147.18,147.17,3.39695436]
[1746627650314,6.59051605,147.18,147.14,27.74003568]
[1746627650716,6.59051605,147.17,147.14,20.94415222]
[1746627651013,6.7942,147.19,147.16,6.7953]
[1746627651217,5.54563974,147.18,147.14,20.94415222]
[1746627651611,5.54563974,147.18,147.13,6.7967]
[1746627651811,6.7954,147.17,147.15,6.7961]
[1746627652215,5.54563974,147.16,147.15,6.7961]
[1746627653219,5.13507528,147.16,147.15,6.7961]
[1746627655620,5.13507528,147.16,147.15,36.1961]
[1746627661527,11.93067528,147.16,147.15,29.4]
[1746627661722,5.13507528,147.16,147.11,29.4]
[1746627662121,5.13507528,147.16,147.08,29.4]
[1746627662325,7.27057528,147.15,147.08,29.4]
[1746627662824,6.7977,147.12,147.09,6.7986]
[1746627663129,5.13507528,147.11,147.09,6.7986]
[1746627663318,5.13507528,147.11,147.1,6.7984]
[1746627669929,5.13507528,147.11,147.09,6.7986]
[1746627670429,5.13507528,147.1,147.09,6.7986]
[1746627673426,5.13507528,147.1,147.08,29.4]
[1746627674034,5.13507528,147.09,147.08,36.199]
[1746627677031,5.13507528,147.09,147.08,29.4]
[1746627677236,11.93387528,147.09,147.08,29.4]
[1746627677434,5.13507528,147.09,147.08,29.4]
[1746627677935,5.13507528,147.09,147.08,36.1993]
[1746627678640,11.93387528,147.09,147.08,29.4]
[1746627678832,5.13507528,147.09,147.05,616.94]
[1746627679137,5.13507528,147.08,147.05,616.94]
[1746627679328,11.93457528,147.08,147.06,6.8]
[1746627679831,5.13507528,147.07,147.06,6.8]
[1746627682743,29.4,147.14,147.1,6.7981]
[1746627683041,6.7975,147.12,147.1,6.7981]
[1746627683241,6.7975,147.12,147.1,3.39843926]
[1746627684639,2.1355,147.15,147.05,29.4]
[1746627684846,2.1355,147.15,147.06,29.38]
[1746627685943,6.7972,147.13,147.11,6.7976]
[1746627686645,6.7972,147.13,147.1,36.1782]
[1746627687248,6.7976,147.12,147.1,36.1782]
[1746627687545,6.7976,147.12,147.09,6.7986]
[1746627688245,6.7979,147.11,147.09,6.7986]
[1746627689946,6.7985,147.1,147.07,29.38]
[1746627690134,2.1355,147.15,147.07,29.38]
[1746627690442,6.7986,147.1,147.07,36.1794]
[1746627691147,6.7986,147.1,147.08,6.7992]
[1746627691346,6.7986,147.1,147.07,29.38]
[1746627692247,6.7986,147.1,147.07,36.1794]
[1746627693349,29.38,147.13,147.07,29.38]
[1746627693546,2.0838,147.12,147.07,29.38]
[1746627693745,2.0838,147.12,147.06,6.8002]
[1746627693944,6.7991,147.09,147.06,6.8002]
[1746627694249,6.7991,147.09,147.07,6.7998]
[1746627694947,4.82620782,147.08,147.07,6.7998]
[1746627705450,7.82e-06,147.08,147.07,6.7998]
[1746627720063,16.88276338,147.28,147.07,6.7998]
[1746627720064,30.82313011,147.17,147.14,6.7962]
[1746627720261,24.02773011,147.17,147.12,29.36]
[1746627720663,30.82313011,147.17,147.15,6.796]
[1746627720967,24.02773011,147.17,147.12,29.36]
[1746627721164,24.02773011,147.17,147.16,6.7956]
[1746627721764,24.02773011,147.17,147.16,36.1556]
[1746627721959,96.11092044,147.2,147.17,6.7952]
[1746627721960,24.02773011,147.18,147.17,6.7952]
[1746627723162,24.02773011,147.18,147.16,36.1554]
[1746627723564,24.02773011,147.18,147.16,29.36]
[1746627724971,24.02773011,147.18,147.17,6.7952]
[1746627725270,24.02773011,147.18,147.16,29.36]
[1746627725769,24.02773011,147.18,147.16,36.1554]
[1746627726270,29.36,147.22,147.13,29.34]
[1746627726463,2.1894,147.18,147.12,29.34]
[1746627726660,6.796,147.16,147.12,36.1371]
[1746627726871,6.796,147.16,147.12,29.34]
[1746627727171,6.7961,147.15,147.13,6.7968]
[1746627727772,6.7967,147.14,147.12,29.34]
[1746627727964,2.1894,147.18,147.12,29.34]
[1746627728166,4.1534,147.17,147.12,29.34]
[1746627728365,6.7975,147.12,147.1,6.7984]
[1746627728766,4.1534,147.17,147.1,6.7984]
[1746627729071,6.7972,147.13,147.1,6.7984]
[1746627729972,6.7975,147.12,147.1,6.7984]
[1746627731671,6.7975,147.12,147.09,36.1386]
[1746627731972,4.58359553,147.11,147.09,29.34]
[1746627732376,11.38179553,147.11,147.09,29.34]
[1746627732666,4.58359553,147.11,147.04,81.11682113]
[1746627732872,4.58359553,147.1,147.06,29.34]
[1746627733374,4.58359553,147.09,147.06,29.34]
[1746627733973,4.58359553,147.09,147.08,6.7991]
[1746627734174,6.7984,147.1,147.08,6.7991]
[1746627734374,4.58542767,147.09,147.06,29.34]
[1746627734772,4.58542767,147.08,147.07,6.7998]
[1746627737376,33.5134,147.17,147.13,6.797]
[1746627737677,6.796,147.16,147.13,6.797]
[1746627738077,6.796,147.16,147.14,6.7965]
[1746627738778,6.796,147.16,147.13,6.7968]
[1746627738976,6.7962,147.15,147.13,6.7968]
[1746627739178,33.5134,147.17,147.1,29.36]
[1746627740979,33.5134,147.17,147.11,6.7977]
[1746627741879,6.7971,147.13,147.11,6.7977]
[1746627744077,45.59080039,147.17,147.1,29.36]
[1746627744375,45.59080039,147.17,147.07,29.32]
[1746627744984,6.7979,147.11,147.09,6.7988]
[1746627745585,6.7977,147.12,147.09,6.7988]
[1746627745776,45.59080039,147.17,147.09,6.7988]
[1746627746284,6.7978,147.12,147.09,6.7988]
[1746627746986,6.798,147.11,147.09,6.7988]
[1746627747388,45.59080039,147.17,147.09,6.7988]
[1746627747686,6.798,147.11,147.09,6.7988]
[1746627749488,4.52916203,147.1,147.09,6.7988]
[1746627749986,11.32796203,147.1,147.07,36.1195]
[1746627750288,4.52916203,147.09,147.07,29.32]
[1746627750489,4.52916203,147.09,147.08,6.799]
[1746627750690,6.7982,147.11,147.08,6.799]
[1746627751089,4.53258303,147.1,147.08,6.799]
[1746627751288,11.33108303,147.1,147.08,6.799]
[1746627751489,4.53258303,147.09,147.08,6.799]
[1746627752493,4.1534,147.17,147.12,6.7973]
[1746627752892,6.7965,147.15,147.12,6.7973]
[1746627753093,4.1534,147.17,147.12,6.7973]
[1746627753695,4.1534,147.17,147.11,6.7977]
[1746627753996,6.7966,147.14,147.11,6.7977]
[1746627754391,4.1534,147.17,147.11,6.7977]
[1746627754591,6.7971,147.13,147.11,6.7977]
[1746627754791,4.1534,147.17,147.07,29.32]
[1746627755091,16.23080039,147.17,147.07,29.32]
[1746627755897,6.7985,147.1,147.08,6.7991]
[1746627757895,6.7982,147.11,147.08,6.7991]
[1746627758091,6.7982,147.11,147.09,6.7987]
[1746627758397,6.798,147.11,147.07,29.32]
[1746627758586,16.23080039,147.17,147.09,6.7986]
[1746627758791,16.23080039,147.17,147.07,29.32]
[1746627759096,6.7974,147.13,147.1,6.7983]
[1746627760098,6.7975,147.12,147.1,6.7983]
[1746627762599,6.7979,147.11,147.09,6.7986]
[1746627762802,16.23080039,147.17,147.07,29.32]
[1746627763800,16.23080039,147.17,147.07,36.1194]
[1746627763993,12.07740039,147.14,147.07,36.1194]
[1746627764192,31.5021,147.13,147.07,36.1194]
[1746627764598,4.48218623,147.12,147.07,36.1194]
[1746627764799,6.64198623,147.12,147.07,36.1194]
[1746627764999,6.7991,147.09,147.07,29.32]
[1746627765197,4.48218623,147.08,147.07,29.32]
[1746627765500,4.48218623,147.08,147.07,36.1198]
[1746627772901,11.28148623,147.08,147.07,29.32]
[1746627773102,11.28148623,147.08,147.05,6.8006]
[1746627773507,11.28218623,147.07,147.04,29.32]
[1746627773903,4.48218623,147.06,147.04,29.32]
[1746627774206,4.48218623,147.05,147.04,36.1212]
[1746627776802,4.48218623,147.05,147.04,6.8012]
[1746627777607,4.48218623,147.05,147.03,36.1214]
[1746627777807,4.48218623,147.04,147.03,36.1214]
[1746627781205,4.48218623,147.04,147.03,29.32]
[1746627781806,4.48218623,147.04,147.03,6.8016]
[1746627782310,4.48218623,147.04,147.02,6.8017]
[1746627782909,4.48218623,147.03,147.02,6.8017]
[1746627805427,8.623e-05,147.03,147.02,6.8017]
[1746627807819,8.9138,147.11,147.09,6.7987]
[1746627809432,8.9138,147.11,147.08,6.799]
[1746627810032,6.7985,147.1,147.08,6.799]
[1746627811433,8.9139,147.11,147.09,6.7988]
[1746627814330,2.1157,147.11,147.09,6.7988]
[1746627815135,8.9139,147.11,147.09,6.7988]
[1746627815736,6.7977,147.12,147.1,6.7981]
[1746627815937,2.0223,147.13,147.06,29.3]
[1746627816235,2.0223,147.13,147.11,6.7976]
[1746627816436,2.0223,147.13,147.1,29.3]
[1746627816939,2.0223,147.13,147.12,6.7975]
[1746627817132,6.7963,147.15,147.1,29.3]
[1746627817333,4.2053,147.16,147.1,29.3]
[1746627817640,11.0014,147.16,147.13,6.7968]
[1746627818636,6.7962,147.15,147.13,6.7968]
[1746627819244,11.0011,147.16,147.14,6.7965]
[1746627819634,8.9719,147.16,147.1,29.3]
[1746627819933,2.1761,147.16,147.1,29.3]
[1746627820133,4.40784647,147.15,147.1,29.3]
[1746627820529,4.40784647,147.14,147.1,29.3]
[1746627821039,4.40784647,147.13,147.12,6.7975]
[1746627823538,4.40784647,147.13,147.1,29.3]
[1746627823539,2.1539,147.18,147.16,6.7954]
[1746627825438,8.9487,147.18,147.16,6.7954]
[1746627826544,2.1539,147.18,147.16,6.7954]
[1746627826943,2.1539,147.18,147.17,6.7952]
[1746627827543,8.9948,147.2,147.17,6.7952]
[1746627828050,2.1095,147.21,147.19,6.7938]
[1746627828342,2.0594,147.22,147.18,29.28]
[1746627828539,2.1614,147.24,147.19,29.28]
[1746627828739,6.7917,147.25,147.19,29.28]
[1746627828942,2.0594,147.27,147.19,29.28]
[1746627829243,6.7915,147.25,147.22,6.7926]
[1746627829844,6.7912,147.26,147.23,6.7923]
[1746627830143,2.0594,147.27,147.23,6.7923]
[1746627830345,2.0594,147.27,147.19,29.28]
[1746627830545,8.8502,147.27,147.24,6.7916]
[1746627830941,2.0594,147.27,147.25,6.7914]
[1746627831143,2.0594,147.27,147.23,29.28]
[1746627831547,6.7894,147.3,147.23,29.28]
[1746627831742,26.03503011,147.31,147.23,29.28]
[1746627832143,32.82413011,147.31,147.23,29.28]
[1746627832846,6.7893,147.3,147.23,29.28]
[1746627833043,26.03503011,147.31,147.23,29.28]
[1746627833245,2.0073,147.31,147.28,6.79]
[1746627833444,8.7962,147.31,147.28,6.79]
[1746627833846,8.7962,147.31,147.27,36.0303]
[1746627834247,8.7962,147.31,147.27,29.24]
[1746627834847,8.7962,147.31,147.28,6.79]
[1746627835548,4.2845166,147.3,147.28,6.79]
[1746627836048,8.7962,147.31,147.28,6.79]
[1746627836351,6.7892,147.3,147.28,6.79]
[1746627837044,8.7962,147.31,147.28,6.79]
[1746627839054,2.1659,147.33,147.27,29.24]
[1746627839850,8.9539,147.33,147.3,6.7889]
[1746627840052,8.9539,147.33,147.27,29.24]
[1746627840251,2.1659,147.33,147.31,6.7884]
[1746627840448,2.1659,147.33,147.27,29.24]
[1746627840748,2.1659,147.33,147.31,6.7886]
[1746627841355,8.9537,147.33,147.3,6.789]
[1746627841653,2.1659,147.33,147.27,29.24]
[1746627841849,6.7886,147.32,147.29,6.7893]
[1746627842048,2.1659,147.33,147.27,29.24]
[1746627842653,8.9541,147.33,147.29,6.7893]
[1746627842951,2.1659,147.33,147.27,29.24]
[1746627843141,6.7885,147.32,147.3,6.7891]
[1746627843850,8.9539,147.33,147.3,6.7891]
[1746627844656,6.7883,147.32,147.3,6.7891]
[1746627844953,6.7883,147.32,147.29,6.7895]
[1746627845154,6.7883,147.32,147.27,29.24]
[1746627845454,6.7883,147.32,147.3,6.7892]
[1746627845949,8.9539,147.33,147.3,6.7892]
[1746627846354,8.9539,147.33,147.31,6.7887]
[1746627846656,8.9539,147.33,147.27,29.24]
[1746627847255,8.9539,147.33,147.3,6.7889]
[1746627847454,6.7883,147.32,147.27,29.24]
[1746627847858,6.7883,147.32,147.29,6.7892]
[1746627848159,6.7888,147.31,147.27,29.24]
[1746627848352,2.1659,147.33,147.27,29.24]
[1746627848657,6.7889,147.31,147.27,29.24]
[1746627848953,2.1659,147.33,147.28,6.7898]
[1746627849357,6.7894,147.3,147.28,6.7898]
[1746627850654,6.7889,147.31,147.28,6.7898]
[1746627851257,6.7889,147.31,147.29,6.7896]
[1746627851759,8.9539,147.33,147.3,6.7888]
[1746627852057,4.27247991,147.32,147.3,6.7888]
[1746627852257,11.06077991,147.32,147.3,6.7888]
[1746627852457,4.27247991,147.31,147.3,6.7888]
[1746627853558,4.27247991,147.32,147.3,6.7888]
[1746627854457,4.27247991,147.32,147.31,6.7887]
[1746627855060,4.27247991,147.32,147.3,6.7889]
[1746627855359,11.06117991,147.32,147.27,29.24]
[1746627855664,6.7887,147.32,147.27,29.24]
[1746627855959,2.1659,147.33,147.27,29.24]
[1746627856160,1.9891,147.36,147.27,29.24]
[1746627856358,1.9891,147.36,147.31,6.7884]
[1746627856559,6.7874,147.34,147.31,6.7884]
[1746627856957,6.7874,147.34,147.27,29.24]
[1746627857260,4.27411826,147.33,147.27,29.24]
[1746627857563,4.27411826,147.33,147.32,6.788]
[1746627857750,4.27411826,147.34,147.32,6.788]
[1746627858462,11.06141826,147.34,147.32,6.788]
[1746627858958,4.27411826,147.34,147.32,6.788]
[1746627859156,4.27411826,147.33,147.32,6.788]
[1746627859357,4.27411826,147.34,147.32,6.788]
[1746627860757,11.06161826,147.34,147.31,36.0085]
[1746627861057,4.27411826,147.33,147.31,36.0085]
[1746627862263,4.27411826,147.32,147.31,36.0085]
[1746627862760,4.27411826,147.34,147.32,6.788]
[1746627863066,4.27411826,147.33,147.32,6.788]
[1746627867664,6.7862,147.37,147.35,6.7868]
[1746627867970,4.29931592,147.36,147.35,6.7868]
[1746627869775,4.29931592,147.36,147.35,35.9868]
[1746627871575,2.0032,147.4,147.38,6.7853]
[1746627872074,8.7878,147.4,147.37,6.7858]
[1746627872374,8.7878,147.4,147.35,29.2]
[1746627872767,8.7878,147.4,147.37,6.7857]
[1746627873068,2.0032,147.4,147.35,29.2]
[1746627873269,2.0032,147.4,147.38,6.7852]
[1746627875470,8.7878,147.4,147.37,6.7857]
[1746627875774,2.0032,147.4,147.35,29.2]
[1746627876276,6.7853,147.39,147.37,6.7857]
[1746627876975,8.7879,147.4,147.38,6.7854]
[1746627878269,2.0032,147.4,147.38,6.7854]
[1746627878676,8.788,147.4,147.37,6.7858]
[1746627878979,8.788,147.4,147.35,29.2]
[1746627879175,8.788,147.4,147.37,6.7856]
[1746627880478,8.788,147.4,147.38,6.7854]
[1746627880875,2.0032,147.4,147.35,29.2]
[1746627881179,2.0032,147.4,147.39,6.785]
[1746627881979,2.1457,147.41,147.39,6.785]
[1746627882678,8.9299,147.41,147.39,6.785]
[1746627883675,2.1457,147.41,147.4,6.7845]
[1746627883875,2.1457,147.41,147.35,29.2]
[1746627883876,2.045,147.44,147.39,29.18]
[1746627884080,29.18,147.47,147.39,29.18]
[1746627884281,6.7826,147.45,147.42,6.7834]
[1746627884583,6.7826,147.45,147.39,29.18]
[1746627885180,6.7826,147.45,147.43,6.7831]
[1746627885676,6.7826,147.45,147.39,29.18]
[1746627885881,6.7826,147.45,147.43,6.7831]
[1746627886482,6.782,147.46,147.44,6.7827]
[1746627886982,31.3143,147.47,147.39,29.18]
[1746627887283,31.3143,147.47,147.43,6.7831]
[1746627887682,6.7821,147.46,147.43,6.7831]
[1746627888383,6.7824,147.45,147.43,6.7831]
[1746627888587,6.7824,147.45,147.42,6.7835]
[1746627888883,31.3143,147.47,147.39,29.18]
[1746627889084,31.3143,147.47,147.41,6.7836]
[1746627889284,31.3143,147.47,147.39,29.18]
[1746627889588,6.7825,147.45,147.42,6.7833]
[1746627889884,31.3143,147.47,147.39,29.18]
[1746627890085,6.782,147.46,147.39,29.18]
[1746627890385,6.782,147.46,147.43,6.7829]
[1746627891892,6.7823,147.45,147.43,6.7829]
[1746627893786,6.782,147.46,147.43,6.7829]
[1746627894583,6.782,147.46,147.44,6.7827]
[1746627894790,8.9158,147.47,147.44,6.7827]
[1746627895588,8.9158,147.47,147.45,6.7822]
[1746627896085,6.7819,147.46,147.44,6.7825]
[1746627896586,2.1343,147.47,147.44,6.7825]
[1746627896788,8.9159,147.47,147.44,6.7825]
[1746627897883,8.9159,147.47,147.45,6.7821]
[1746627898789,8.9159,147.47,147.44,6.7825]
[1746627899387,6.7818,147.46,147.44,6.7825]
[1746627899987,8.916,147.47,147.44,6.7825]
[1746627900189,8.916,147.47,147.43,29.16]
[1746627900779,2.1343,147.47,147.43,29.16]
[1746627901188,8.9159,147.47,147.43,29.16]
[1746627901389,2.1343,147.47,147.43,29.16]
[1746627901687,6.7821,147.46,147.43,29.16]
[1746627901887,2.1343,147.47,147.43,35.9429]
[1746627902290,6.7821,147.46,147.43,35.9429]
[1746627902590,2.1343,147.47,147.43,35.9429]
[1746627902791,6.7821,147.46,147.43,35.9429]
[1746627903492,6.7823,147.45,147.43,35.9429]
[1746627904392,6.7819,147.46,147.43,35.9429]
[1746627906291,6.7823,147.45,147.43,35.9429]
[1746627906488,2.1343,147.47,147.43,35.9429]
[1746627906994,2.1343,147.47,147.42,6.7834]
[1746627907297,2.1343,147.47,147.4,29.16]
[1746627907687,6.7832,147.43,147.4,35.9444]
[1746627907982,2.1343,147.47,147.4,35.9444]
[1746627908295,6.7831,147.44,147.41,6.7838]
[1746627908491,2.1343,147.47,147.4,29.16]
[1746627908993,2.1343,147.47,147.41,6.784]
[1746627909191,2.1343,147.47,147.4,29.16]
[1746627909586,6.7834,147.43,147.4,35.9441]
[1746627909892,2.1343,147.47,147.4,35.9441]
[1746627910095,6.7835,147.43,147.4,35.9441]
[1746627910295,2.1343,147.47,147.4,35.9441]
[1746627910692,6.7837,147.42,147.4,35.9441]
[1746627910894,2.1343,147.47,147.4,29.16]
[1746627911294,29.16,147.46,147.4,29.16]
[1746627911894,6.7841,147.41,147.4,29.16]
[1746627913496,6.7847,147.4,147.38,6.7855]
[1746627913795,6.7847,147.4,147.37,29.16]
[1746627914096,6.7847,147.4,147.38,6.7855]
[1746627914398,6.7847,147.4,147.37,29.16]
[1746627914797,6.7843,147.41,147.37,29.16]
[1746627915196,6.7843,147.41,147.39,6.785]
[1746627917198,6.7846,147.4,147.38,6.7853]
[1746627917398,29.16,147.46,147.37,29.16]
[1746627917998,29.16,147.46,147.38,6.7853]
[1746627918397,29.16,147.46,147.37,29.16]
[1746627918697,29.16,147.46,147.39,6.785]
[1746627919503,6.7843,147.41,147.38,6.7852]
[1746627919994,6.7848,147.4,147.38,6.7852]
[1746627920298,29.16,147.46,147.37,35.9456]
[1746627920500,6.7844,147.41,147.37,29.16]
[1746627920695,29.16,147.46,147.38,6.7854]
[1746627920895,12.09618908,147.45,147.31,2.0343]
[1746627921199,12.09618908,147.45,147.36,6.7861]
[1746627921200,2.145,147.44,147.36,6.7861]
[1746627921597,6.7854,147.39,147.36,6.7861]
[1746627922099,1.9854,147.43,147.36,6.7861]
[1746627922396,6.7857,147.38,147.35,6.7866]
[1746627922597,2.1832,147.42,147.34,29.16]
[1746627922900,6.7847,147.4,147.37,6.7856]
[1746627924302,6.7847,147.4,147.38,6.7854]
[1746627924503,6.7843,147.41,147.34,29.16]
[1746627925098,2.1832,147.42,147.34,29.16]
[1746627925805,6.7843,147.41,147.34,29.16]
[1746627926306,6.7843,147.41,147.38,6.785]
[1746627926801,6.7843,147.41,147.39,6.785]
[1746627927506,8.967,147.42,147.4,6.7844]
[1746627927704,36.12391919,147.48,147.38,29.14]
[1746627927906,2.0128,147.47,147.38,29.14]
[1746627928405,2.0128,147.47,147.38,41.23618908]
[1746627928599,2.0128,147.47,147.39,2.1402]
[1746627928800,6.7822,147.46,147.43,6.7829]
[1746627928996,2.0128,147.47,147.42,29.14]
[1746627929605,8.7944,147.47,147.44,6.7824]
[1746627930305,6.7818,147.46,147.44,6.7824]
[1746627930706,2.0128,147.47,147.43,6.7829]
[1746627931005,6.7819,147.46,147.43,6.7829]
[1746627931307,2.0128,147.47,147.42,35.9235]
[1746627931511,6.7826,147.45,147.42,35.9235]
[1746627932008,2.0128,147.47,147.42,35.9235]
[1746627932210,2.0128,147.47,147.42,29.14]
[1746627932508,2.0128,147.47,147.39,29.14]
[1746627932909,6.7839,147.42,147.39,35.9248]
[1746627934312,6.7844,147.41,147.39,29.14]
[1746627934610,2.0128,147.47,147.39,29.14]
[1746627935404,6.784,147.42,147.39,35.925]
[1746627935610,2.0128,147.47,147.39,29.14]
[1746627936009,2.0128,147.47,147.39,35.925]
[1746627936614,6.784,147.42,147.39,35.925]
[1746627937213,6.7842,147.41,147.39,35.925]
[1746627937413,6.7842,147.41,147.39,29.14]
[1746627937707,2.0128,147.47,147.39,29.14]
[1746627938814,6.7845,147.4,147.37,6.7858]
[1746627939111,29.14,147.44,147.37,6.7858]
[1746627939313,6.7849,147.4,147.37,6.7858]
[1746627939608,6.7849,147.4,147.38,6.7854]
[1746627939812,6.7842,147.41,147.38,6.7854]
[1746627941512,6.7842,147.41,147.39,6.785]
[1746627941718,6.7842,147.41,147.36,29.14]
[1746627941914,6.7842,147.41,147.38,6.7851]
[1746627942417,29.14,147.44,147.39,6.7849]
[1746627943318,6.7839,147.42,147.39,6.7849]
[1746627944520,6.7841,147.41,147.39,6.7849]
[1746627946022,6.7838,147.42,147.4,6.7845]
[1746627946221,29.14,147.44,147.36,29.14]
[1746627946924,6.7834,147.43,147.36,29.14]
[1746627947618,6.7829,147.44,147.36,29.14]
[1746627947821,2.0689,147.46,147.36,29.14]
[1746627948321,6.7834,147.43,147.41,6.784]
[1746627949624,6.7829,147.44,147.42,6.7836]
[1746627950316,6.7826,147.45,147.42,6.7836]
[1746627950517,2.0128,147.47,147.44,6.7824]
[1746627950718,2.0128,147.47,147.4,29.14]
[1746627950918,6.7826,147.45,147.4,29.14]
[1746627951424,6.7826,147.45,147.42,6.7833]
[1746627952320,6.7827,147.44,147.42,6.7833]
[1746627956427,6.7825,147.45,147.42,6.7833]
[1746627958729,6.7825,147.45,147.43,6.7832]
[1746627960228,2.0128,147.47,147.43,6.7832]
[1746627960829,6.7819,147.46,147.43,6.7832]
[1746627961131,2.0128,147.47,147.43,6.7832]
[1746627961527,6.7825,147.45,147.43,6.7832]
[1746627963230,6.7825,147.45,147.42,6.7834]
[1746627963432,6.7827,147.44,147.42,6.7834]
[1746627963630,2.0128,147.47,147.4,29.14]
[1746627963832,6.7831,147.44,147.41,6.7838]
[1746627964231,2.0128,147.47,147.41,6.7838]
[1746627965033,6.7834,147.43,147.41,6.7838]
[1746627965334,6.7834,147.43,147.4,35.9243]
[1746627966034,6.7829,147.44,147.41,6.784]
[1746627967034,6.7829,147.44,147.42,6.7836]
[1746627971338,6.7833,147.43,147.41,6.7839]
[1746627971934,6.7827,147.45,147.4,29.14]
[1746627972136,2.0128,147.47,147.4,29.14]
[1746627972932,6.7823,147.45,147.42,6.7834]
[1746627974039,6.7828,147.44,147.42,6.7834]
[1746627974337,2.0128,147.47,147.4,29.14]
[1746627974837,2.0128,147.47,147.41,6.784]
[1746627975036,31.1328,147.47,147.41,6.784]
[1746627975238,6.7831,147.44,147.41,6.784]
[1746627975938,6.7831,147.44,147.42,6.7836]
[1746627976238,6.7825,147.45,147.42,6.7836]
[1746627976940,6.7827,147.44,147.42,6.7836]
[1746627978241,31.1328,147.47,147.42,6.7836]
[1746627978743,6.7821,147.46,147.4,29.14]
[1746627979946,6.7821,147.46,147.43,6.7829]
[1746627980548,6.7824,147.45,147.43,6.7829]